[Event "Titled Tuesday Blitz March 21 Early 2023"]
[White "Flores, Diego"]
[Black "Staudenhocker43"]
[WhiteFideId "108049"]
[WhiteElo "2606"]
[BlackElo "2495"]
[Result "1-0"]
[Round "04"]
[TimeControl "180+2"]
[Date "2023.03.21"]
[WhiteClock "0:00:26"]
[BlackClock "0:00:17"]

1. c4 {[%clk 0:03:00]}  c5 {[%clk 0:02:59]} 2. Nc3 {[%clk 0:03:00]}  Nc6 {[%clk 0:02:59]} 3. g3 {[%clk 0:03:00]}  g6 {[%clk 0:03:00]} 4. Bg2 {[%clk 0:03:00]}  Bg7 {[%clk 0:03:01]} 5. d3 {[%clk 0:03:01]}  e6 {[%clk 0:03:00]} 6. Bxc6 {[%clk 0:02:56]}  dxc6 {[%clk 0:02:53]} 7. Qd2 {[%clk 0:02:55]}  Ne7 {[%clk 0:02:51]} 8. b3 {[%clk 0:02:55]}  b6 {[%clk 0:02:49]} 9. Bb2 {[%clk 0:02:56]}  O-O {[%clk 0:02:49]} 10. h4 {[%clk 0:02:46]}  h6 {[%clk 0:02:48]} 11. e3 {[%clk 0:02:31]}  e5 {[%clk 0:02:47]} 12. O-O-O {[%clk 0:02:26]}  Bg4 {[%clk 0:02:40]} 13. f3 {[%clk 0:02:27]}  Be6 {[%clk 0:02:40]} 14. g4 {[%clk 0:02:27]}  Qd7 {[%clk 0:02:35]} 15. Nge2 {[%clk 0:02:26]}  b5 {[%clk 0:02:33]} 16. Ne4 {[%clk 0:02:20]}  Qc7 {[%clk 0:02:26]} 17. Nxc5 {[%clk 0:02:20]}  Bc8 {[%clk 0:02:26]} 18. h5 {[%clk 0:02:07]}  a5 {[%clk 0:02:19]} 19. hxg6 {[%clk 0:02:00]}  fxg6 {[%clk 0:02:15]} 20. f4 {[%clk 0:01:49]}  Bxg4 {[%clk 0:02:13]} 21. Rdg1 {[%clk 0:01:49]}  Qc8 {[%clk 0:02:01]} 22. Ng3 {[%clk 0:00:57]}  a4 {[%clk 0:01:50]} 23. b4 {[%clk 0:00:45]}  bxc4 {[%clk 0:01:07]} 24. Bxe5 {[%clk 0:00:43]}  Bxe5 {[%clk 0:01:05]} 25. fxe5 {[%clk 0:00:43]}  cxd3 {[%clk 0:01:00]} 26. Nge4 {[%clk 0:00:39]}  h5 {[%clk 0:00:54]} 27. Nf6+ {[%clk 0:00:35]}  Rxf6 {[%clk 0:00:54]} 28. exf6 {[%clk 0:00:35]}  Nf5 {[%clk 0:00:50]} 29. Rxg4 {[%clk 0:00:29]}  hxg4 {[%clk 0:00:49]} 30. Qxd3 {[%clk 0:00:29]}  Qd8 {[%clk 0:00:35]} 31. Nd7 {[%clk 0:00:26]}  Nxe3 {[%clk 0:00:17]} 32. Qxg6# {[%clk 0:00:26]} 1-0


[Site "https://www.chess.com"]

[Event "Titled Tuesday Blitz March 21 Early 2023"]
[White "Eynullayev, Atilla"]
[Black "Hambleton, Aman"]
[WhiteFideId "13413570"]
[BlackFideId "2606577"]
[WhiteElo "2181"]
[BlackElo "2511"]
[Result "0-1"]
[Round "04"]
[TimeControl "180+2"]
[Date "2023.03.21"]
[WhiteClock "0:00:02"]
[BlackClock "0:00:02"]

1. d4 {[%clk 0:03:00]}  Nf6 {[%clk 0:02:59]} 2. c4 {[%clk 0:03:01]}  e6 {[%clk 0:02:59]} 3. Nc3 {[%clk 0:03:02]}  Bb4 {[%clk 0:02:59]} 4. e3 {[%clk 0:03:02]}  O-O {[%clk 0:02:56]} 5. Bd3 {[%clk 0:03:03]}  c5 {[%clk 0:02:55]} 6. Nf3 {[%clk 0:03:02]}  d5 {[%clk 0:02:53]} 7. cxd5 {[%clk 0:03:02]}  Nxd5 {[%clk 0:02:24]} 8. O-O {[%clk 0:03:01]}  cxd4 {[%clk 0:02:14]} 9. exd4 {[%clk 0:03:01]}  h6 {[%clk 0:02:09]} 10. Bc2 {[%clk 0:02:56]}  Nf6 {[%clk 0:01:43]} 11. Qd3 {[%clk 0:02:49]}  Bxc3 {[%clk 0:01:29]} 12. bxc3 {[%clk 0:02:49]}  b6 {[%clk 0:01:22]} 13. Ne5 {[%clk 0:01:29]}  Bb7 {[%clk 0:01:08]} 14. Qg3 {[%clk 0:01:26]}  Kh8 {[%clk 0:00:30]} 15. Re1 {[%clk 0:00:40]}  Nbd7 {[%clk 0:00:12]} 16. Qh3 {[%clk 0:00:35]}  Nxe5 {[%clk 0:00:04]} 17. Rxe5 {[%clk 0:00:29]}  Ng8 {[%clk 0:00:04]} 18. Qd3 {[%clk 0:00:29]}  g6 {[%clk 0:00:02]} 19. Qh3 {[%clk 0:00:27]}  Kg7 {[%clk 0:00:02]} 20. Bd2 {[%clk 0:00:22]}  Rc8 {[%clk 0:00:03]} 21. Rae1 {[%clk 0:00:22]}  Bd5 {[%clk 0:00:01]} 22. Bd3 {[%clk 0:00:20]}  Rc7 {[%clk 0:00:01]} 23. R5e3 {[%clk 0:00:14]}  Bxa2 {[%clk 0:00:01]} 24. Rg3 {[%clk 0:00:14]}  Bc4 {[%clk 0:00:01]} 25. Bb1 {[%clk 0:00:11]}  b5 {[%clk 0:00:01]} 26. Re5 {[%clk 0:00:10]}  a5 {[%clk 0:00:01]} 27. Qh5 {[%clk 0:00:09]}  Qe8 {[%clk 0:00:01]} 28. Qf3 {[%clk 0:00:06]}  a4 {[%clk 0:00:01]} 29. h4 {[%clk 0:00:05]}  a3 {[%clk 0:00:01]} 30. h5 {[%clk 0:00:06]}  a2 {[%clk 0:00:01]} 31. Bxa2 {[%clk 0:00:06]}  Bxa2 {[%clk 0:00:02]} 32. Qe3 {[%clk 0:00:03]}  Bb1 {[%clk 0:00:02]} 33. hxg6 {[%clk 0:00:02]}  Bxg6 {[%clk 0:00:03]} 34. Rh3 {[%clk 0:00:02]}  f6 {[%clk 0:00:02]} 0-1


[Site "https://www.chess.com"]

[Event "Titled Tuesday Blitz March 21 Early 2023"]
[White "Fernandez Guillen, Ernesto J."]
[Black "Yosha_Iglesias"]
[WhiteFideId "3512428"]
[WhiteElo "2423"]
[BlackElo "2467"]
[Result "1/2-1/2"]
[Round "04"]
[TimeControl "180+2"]
[Date "2023.03.21"]
[WhiteClock "0:00:07"]
[BlackClock "0:00:04"]

1. e4 {[%clk 0:03:00]}  c5 {[%clk 0:01:58]} 2. Nf3 {[%clk 0:02:50]}  d6 {[%clk 0:01:58]} 3. d4 {[%clk 0:02:51]}  cxd4 {[%clk 0:01:58]} 4. Nxd4 {[%clk 0:02:51]}  Nf6 {[%clk 0:01:59]} 5. Nc3 {[%clk 0:02:51]}  g6 {[%clk 0:02:00]} 6. f3 {[%clk 0:02:49]}  Nc6 {[%clk 0:01:58]} 7. Be3 {[%clk 0:02:47]}  h5 {[%clk 0:01:57]} 8. Bc4 {[%clk 0:02:47]}  Bg7 {[%clk 0:01:56]} 9. Qd2 {[%clk 0:02:47]}  Bd7 {[%clk 0:01:53]} 10. h4 {[%clk 0:02:46]}  Rc8 {[%clk 0:01:51]} 11. Bb3 {[%clk 0:02:46]}  Qa5 {[%clk 0:01:46]} 12. O-O-O {[%clk 0:02:44]}  Ne5 {[%clk 0:01:44]} 13. Kb1 {[%clk 0:02:43]}  Nc4 {[%clk 0:01:37]} 14. Bxc4 {[%clk 0:02:42]}  Rxc4 {[%clk 0:01:38]} 15. Nde2 {[%clk 0:02:42]}  Be6 {[%clk 0:01:26]} 16. b3 {[%clk 0:01:53]}  Rc6 {[%clk 0:01:06]} 17. Nd5 {[%clk 0:01:52]}  Qxd2 {[%clk 0:01:04]} 18. Nxf6+ {[%clk 0:01:52]}  Bxf6 {[%clk 0:01:03]} 19. Rxd2 {[%clk 0:01:53]}  a6 {[%clk 0:00:53]} 20. Bd4 {[%clk 0:01:53]}  Bxd4 {[%clk 0:00:50]} 21. Nxd4 {[%clk 0:01:54]}  Rc5 {[%clk 0:00:48]} 22. c4 {[%clk 0:01:51]}  Bd7 {[%clk 0:00:37]} 23. Rc1 {[%clk 0:01:50]}  f6 {[%clk 0:00:33]} 24. a4 {[%clk 0:01:49]}  a5 {[%clk 0:00:30]} 25. Ne2 {[%clk 0:01:43]}  Kf7 {[%clk 0:00:29]} 26. Kb2 {[%clk 0:01:43]}  Rg8 {[%clk 0:00:25]} 27. Rd5 {[%clk 0:01:32]}  b6 {[%clk 0:00:24]} 28. Rxc5 {[%clk 0:01:13]}  bxc5 {[%clk 0:00:24]} 29. Rh1 {[%clk 0:01:13]}  Rb8 {[%clk 0:00:21]} 30. Nc3 {[%clk 0:01:14]}  Bc6 {[%clk 0:00:19]} 31. Kc2 {[%clk 0:01:13]}  e5 {[%clk 0:00:17]} 32. Nb5 {[%clk 0:01:12]}  Bxb5 {[%clk 0:00:17]} 33. axb5 {[%clk 0:01:13]}  Ra8 {[%clk 0:00:14]} 34. Ra1 {[%clk 0:01:13]}  Ke6 {[%clk 0:00:15]} 35. Kd3 {[%clk 0:00:51]}  Kd7 {[%clk 0:00:15]} 36. Ke3 {[%clk 0:00:51]}  Kc7 {[%clk 0:00:15]} 37. g4 {[%clk 0:00:51]}  Kb6 {[%clk 0:00:15]} 38. gxh5 {[%clk 0:00:46]}  gxh5 {[%clk 0:00:16]} 39. Rd1 {[%clk 0:00:34]}  Kc7 {[%clk 0:00:15]} 40. Kd3 {[%clk 0:00:23]}  Rg8 {[%clk 0:00:10]} 41. Ra1 {[%clk 0:00:23]}  Kb6 {[%clk 0:00:10]} 42. Ke3 {[%clk 0:00:23]}  Rg2 {[%clk 0:00:09]} 43. Rd1 {[%clk 0:00:23]}  Kc7 {[%clk 0:00:08]} 44. b6+ {[%clk 0:00:13]}  Kc6 {[%clk 0:00:08]} 45. b7 {[%clk 0:00:12]}  Kxb7 {[%clk 0:00:08]} 46. Rxd6 {[%clk 0:00:12]}  Rb2 {[%clk 0:00:09]} 47. Rd3 {[%clk 0:00:11]}  Kc6 {[%clk 0:00:08]} 48. Rc3 {[%clk 0:00:09]}  Rh2 {[%clk 0:00:07]} 49. Rd3 {[%clk 0:00:09]}  Rxh4 {[%clk 0:00:06]} 50. Rd8 {[%clk 0:00:10]}  Rh1 {[%clk 0:00:06]} 51. Rf8 {[%clk 0:00:08]}  Rb1 {[%clk 0:00:04]} 52. Rxf6+ {[%clk 0:00:09]}  Kc7 {[%clk 0:00:03]} 53. Ra6 {[%clk 0:00:09]}  Rxb3+ {[%clk 0:00:03]} 54. Kf2 {[%clk 0:00:09]}  Rc3 {[%clk 0:00:02]} 55. Rxa5 {[%clk 0:00:09]}  Rxc4 {[%clk 0:00:03]} 56. Ra8 {[%clk 0:00:10]}  Rc2+ {[%clk 0:00:02]} 57. Ke3 {[%clk 0:00:11]}  Kc6 {[%clk 0:00:03]} 58. Rh8 {[%clk 0:00:11]}  Kb5 {[%clk 0:00:03]} 59. Rxh5 {[%clk 0:00:11]}  Rc3+ {[%clk 0:00:02]} 60. Ke2 {[%clk 0:00:11]}  Kc4 {[%clk 0:00:01]} 61. Rxe5 {[%clk 0:00:11]}  Rc2+ {[%clk 0:00:02]} 62. Ke3 {[%clk 0:00:11]}  Rc3+ {[%clk 0:00:02]} 63. Kf4 {[%clk 0:00:11]}  Rc1 {[%clk 0:00:03]} 64. Rd5 {[%clk 0:00:11]}  Kb4 {[%clk 0:00:03]} 65. Ke5 {[%clk 0:00:11]}  c4 {[%clk 0:00:03]} 66. f4 {[%clk 0:00:12]}  c3 {[%clk 0:00:04]} 67. Rd8 {[%clk 0:00:12]}  c2 {[%clk 0:00:04]} 68. Rc8 {[%clk 0:00:13]}  Kb3 {[%clk 0:00:05]} 69. f5 {[%clk 0:00:13]}  Rd1 {[%clk 0:00:04]} 70. f6 {[%clk 0:00:13]}  Rd8 {[%clk 0:00:04]} 71. Rxc2 {[%clk 0:00:12]}  Kxc2 {[%clk 0:00:04]} 72. Ke6 {[%clk 0:00:09]}  Kd3 {[%clk 0:00:04]} 73. e5 {[%clk 0:00:09]}  Ke4 {[%clk 0:00:04]} 74. f7 {[%clk 0:00:08]}  Rf8 {[%clk 0:00:03]} 75. Kf6 {[%clk 0:00:06]}  Rxf7+ {[%clk 0:00:03]} 76. Kxf7 {[%clk 0:00:07]}  Kxe5 {[%clk 0:00:04]} 1/2-1/2


[Site "https://www.chess.com"]

[Event "Titled Tuesday Blitz March 21 Early 2023"]
[White "Mindlin, Alon"]
[Black "Avazkhonov, Alikhon"]
[WhiteFideId "2800071"]
[BlackFideId "14208504"]
[WhiteElo "2430"]
[BlackElo "1739"]
[Result "1-0"]
[Round "04"]
[TimeControl "180+2"]
[Date "2023.03.21"]
[WhiteClock "0:02:15"]
[BlackClock "0:00:33"]

1. d4 {[%clk 0:03:00]}  Nf6 {[%clk 0:03:00]} 2. c4 {[%clk 0:03:00]}  e6 {[%clk 0:03:01]} 3. Nf3 {[%clk 0:03:00]}  Bb4+ {[%clk 0:03:01]} 4. Nc3 {[%clk 0:02:59]}  Qe7 {[%clk 0:03:01]} 5. g3 {[%clk 0:02:53]}  O-O {[%clk 0:02:59]} 6. Bd2 {[%clk 0:02:52]}  d6 {[%clk 0:02:51]} 7. Bg2 {[%clk 0:02:51]}  e5 {[%clk 0:02:49]} 8. e3 {[%clk 0:02:42]}  Bg4 {[%clk 0:02:04]} 9. dxe5 {[%clk 0:02:36]}  dxe5 {[%clk 0:01:57]} 10. h3 {[%clk 0:02:35]}  Bd7 {[%clk 0:01:39]} 11. a3 {[%clk 0:02:29]}  Bd6 {[%clk 0:01:35]} 12. Ng5 {[%clk 0:02:26]}  Bc6 {[%clk 0:01:06]} 13. Bxc6 {[%clk 0:02:24]}  Nxc6 {[%clk 0:01:07]} 14. Qc2 {[%clk 0:02:24]}  Nd4 {[%clk 0:00:48]} 15. Qb1 {[%clk 0:02:18]}  h6 {[%clk 0:00:36]} 16. Nd5 {[%clk 0:02:16]}  Nxd5 {[%clk 0:00:33]} 17. Qh7# {[%clk 0:02:15]} 1-0


[Site "https://www.chess.com"]

[Event "Titled Tuesday Blitz March 21 Early 2023"]
[White "Klepikov, Nikita"]
[Black "Preotu, Razvan"]
[WhiteFideId "24145220"]
[BlackFideId "2613280"]
[WhiteElo "2025"]
[BlackElo "2407"]
[Result "1-0"]
[Round "04"]
[TimeControl "180+2"]
[Date "2023.03.21"]
[WhiteClock "0:00:53"]
[BlackClock "0:02:09"]

1. e4 {[%clk 0:02:57]}  c5 {[%clk 0:02:59]} 2. Nf3 {[%clk 0:02:57]}  d6 {[%clk 0:03:00]} 3. d4 {[%clk 0:02:55]}  cxd4 {[%clk 0:03:00]} 4. Nxd4 {[%clk 0:02:56]}  Nf6 {[%clk 0:03:01]} 5. Nc3 {[%clk 0:02:56]}  a6 {[%clk 0:03:01]} 6. Bc4 {[%clk 0:02:57]}  e6 {[%clk 0:03:01]} 7. Bb3 {[%clk 0:02:57]}  b5 {[%clk 0:03:02]} 8. Qf3 {[%clk 0:02:56]}  Qc7 {[%clk 0:02:53]} 9. Bg5 {[%clk 0:02:54]}  Be7 {[%clk 0:02:52]} 10. O-O-O {[%clk 0:02:53]}  b4 {[%clk 0:02:44]} 11. Na4 {[%clk 0:01:30]}  O-O {[%clk 0:02:37]} 12. e5 {[%clk 0:01:00]}  Bb7 {[%clk 0:02:09]} 13. exf6 {[%clk 0:01:00]}  Bxf3 {[%clk 0:02:08]} 14. fxe7 {[%clk 0:01:01]}  Bxd1 {[%clk 0:02:09]} 15. Nxe6 {[%clk 0:00:53]} 1-0


[Site "https://www.chess.com"]

[Event "Titled Tuesday Blitz March 21 Early 2023"]
[White "Manukyan, Sargis A."]
[Black "Lorenzo De La Riva, Lazaro"]
[WhiteFideId "13303970"]
[BlackFideId "2268809"]
[WhiteElo "2187"]
[BlackElo "2294"]
[Result "1-0"]
[Round "04"]
[TimeControl "180+2"]
[Date "2023.03.21"]
[WhiteClock "0:01:29"]
[BlackClock "0:00:04"]

1. d4 {[%clk 0:03:00]}  Nf6 {[%clk 0:02:59]} 2. c4 {[%clk 0:03:01]}  c5 {[%clk 0:02:57]} 3. d5 {[%clk 0:03:01]}  b5 {[%clk 0:02:56]} 4. cxb5 {[%clk 0:03:02]}  a6 {[%clk 0:02:56]} 5. bxa6 {[%clk 0:03:03]}  g6 {[%clk 0:02:55]} 6. Nc3 {[%clk 0:03:04]}  Bg7 {[%clk 0:02:53]} 7. Nf3 {[%clk 0:03:04]}  O-O {[%clk 0:02:53]} 8. g3 {[%clk 0:03:05]}  d6 {[%clk 0:02:50]} 9. Bg2 {[%clk 0:03:05]}  Nxa6 {[%clk 0:02:46]} 10. O-O {[%clk 0:03:05]}  Bb7 {[%clk 0:02:43]} 11. Nh4 {[%clk 0:03:04]}  Qb6 {[%clk 0:02:31]} 12. Rb1 {[%clk 0:02:59]}  Nd7 {[%clk 0:02:20]} 13. Bd2 {[%clk 0:02:57]}  Nc7 {[%clk 0:02:13]} 14. b3 {[%clk 0:02:56]}  Nb5 {[%clk 0:02:02]} 15. Nxb5 {[%clk 0:02:54]}  Qxb5 {[%clk 0:02:03]} 16. a4 {[%clk 0:02:54]}  Qa6 {[%clk 0:02:00]} 17. Re1 {[%clk 0:02:54]}  Rfb8 {[%clk 0:01:56]} 18. e4 {[%clk 0:02:51]}  Ne5 {[%clk 0:01:54]} 19. Bc3 {[%clk 0:02:46]}  Qb6 {[%clk 0:01:34]} 20. f4 {[%clk 0:02:42]}  c4+ {[%clk 0:01:29]} 21. Bd4 {[%clk 0:02:41]}  Qa5 {[%clk 0:01:05]} 22. fxe5 {[%clk 0:02:36]}  dxe5 {[%clk 0:01:05]} 23. Be3 {[%clk 0:02:26]}  c3 {[%clk 0:01:02]} 24. Qc2 {[%clk 0:02:25]}  Ba6 {[%clk 0:01:01]} 25. b4 {[%clk 0:02:20]}  Qc7 {[%clk 0:00:55]} 26. b5 {[%clk 0:02:20]}  Bc8 {[%clk 0:00:52]} 27. Rec1 {[%clk 0:02:20]}  Qd7 {[%clk 0:00:43]} 28. Qxc3 {[%clk 0:02:15]}  Rxa4 {[%clk 0:00:43]} 29. Qc7 {[%clk 0:02:12]}  Qxc7 {[%clk 0:00:43]} 30. Rxc7 {[%clk 0:02:12]}  Bg4 {[%clk 0:00:44]} 31. b6 {[%clk 0:02:12]}  Ra3 {[%clk 0:00:39]} 32. Bc5 {[%clk 0:02:06]}  Rc3 {[%clk 0:00:36]} 33. h3 {[%clk 0:02:03]}  Be2 {[%clk 0:00:28]} 34. d6 {[%clk 0:02:02]}  exd6 {[%clk 0:00:25]} 35. Bxd6 {[%clk 0:02:03]}  Rxc7 {[%clk 0:00:24]} 36. Bxc7 {[%clk 0:02:02]}  Rb7 {[%clk 0:00:25]} 37. Re1 {[%clk 0:01:59]}  Bb5 {[%clk 0:00:24]} 38. Nf3 {[%clk 0:01:59]}  Kf8 {[%clk 0:00:22]} 39. Rd1 {[%clk 0:01:58]}  Ke7 {[%clk 0:00:22]} 40. Nxe5 {[%clk 0:01:47]}  Bxe5 {[%clk 0:00:20]} 41. Bxe5 {[%clk 0:01:48]}  Rxb6 {[%clk 0:00:21]} 42. Rb1 {[%clk 0:01:49]}  Ke6 {[%clk 0:00:18]} 43. Bd4 {[%clk 0:01:46]}  Rb8 {[%clk 0:00:16]} 44. Bf2 {[%clk 0:01:43]}  Rd8 {[%clk 0:00:06]} 45. Rxb5 {[%clk 0:01:35]}  h5 {[%clk 0:00:05]} 46. h4 {[%clk 0:01:34]}  g5 {[%clk 0:00:05]} 47. Rxg5 {[%clk 0:01:33]}  f6 {[%clk 0:00:06]} 48. Rxh5 {[%clk 0:01:33]}  Rd1+ {[%clk 0:00:07]} 49. Bf1 {[%clk 0:01:33]}  Ra1 {[%clk 0:00:07]} 50. Rf5 {[%clk 0:01:33]}  Ke7 {[%clk 0:00:07]} 51. Rf4 {[%clk 0:01:34]}  Ke6 {[%clk 0:00:07]} 52. h5 {[%clk 0:01:34]}  Ke5 {[%clk 0:00:08]} 53. Rh4 {[%clk 0:01:35]}  f5 {[%clk 0:00:09]} 54. exf5 {[%clk 0:01:35]}  Kf6 {[%clk 0:00:08]} 55. h6 {[%clk 0:01:35]}  Ra8 {[%clk 0:00:07]} 56. h7 {[%clk 0:01:36]}  Kg5 {[%clk 0:00:07]} 57. Bg2 {[%clk 0:01:30]}  Ra1+ {[%clk 0:00:07]} 58. Kh2 {[%clk 0:01:30]}  Rb1 {[%clk 0:00:05]} 59. h8=Q {[%clk 0:01:30]}  Kxf5 {[%clk 0:00:05]} 60. Rf4+ {[%clk 0:01:28]}  Ke6 {[%clk 0:00:05]} 61. Qf6+ {[%clk 0:01:28]}  Kd7 {[%clk 0:00:04]} 62. Rd4+ {[%clk 0:01:28]}  Kc8 {[%clk 0:00:04]} 63. Qc6+ {[%clk 0:01:28]}  Kb8 {[%clk 0:00:04]} 64. Qa8+ {[%clk 0:01:28]}  Kc7 {[%clk 0:00:04]} 65. Qd8# {[%clk 0:01:29]} 1-0


[Site "https://www.chess.com"]

[Event "Titled Tuesday Blitz March 21 Early 2023"]
[White "Abduzhaparov"]
[Black "Perez Gormaz, Matias"]
[BlackFideId "3406342"]
[WhiteElo "2352"]
[BlackElo "2362"]
[Result "0-1"]
[Round "04"]
[TimeControl "180+2"]
[Date "2023.03.21"]
[WhiteClock "0:00:06"]
[BlackClock "0:00:15"]

1. Nf3 {[%clk 0:03:00]}  d5 {[%clk 0:02:59]} 2. c4 {[%clk 0:03:01]}  d4 {[%clk 0:02:58]} 3. e3 {[%clk 0:03:01]}  Nc6 {[%clk 0:02:58]} 4. b4 {[%clk 0:03:02]}  dxe3 {[%clk 0:02:56]} 5. fxe3 {[%clk 0:03:02]}  Nxb4 {[%clk 0:02:57]} 6. d4 {[%clk 0:03:02]}  e6 {[%clk 0:02:44]} 7. a3 {[%clk 0:03:02]}  Nc6 {[%clk 0:02:44]} 8. d5 {[%clk 0:03:02]}  Na5 {[%clk 0:02:34]} 9. Qa4+ {[%clk 0:02:44]}  c6 {[%clk 0:02:32]} 10. Bd2 {[%clk 0:02:44]}  b6 {[%clk 0:02:25]} 11. Bxa5 {[%clk 0:02:43]}  bxa5 {[%clk 0:02:25]} 12. dxc6 {[%clk 0:02:42]}  Nf6 {[%clk 0:02:16]} 13. c5 {[%clk 0:02:24]}  Qc7 {[%clk 0:02:13]} 14. Nc3 {[%clk 0:02:22]}  a6 {[%clk 0:02:09]} 15. Rb1 {[%clk 0:02:13]}  Bxc5 {[%clk 0:01:50]} 16. Rb7 {[%clk 0:02:12]}  Qd6 {[%clk 0:01:45]} 17. Ng5 {[%clk 0:01:11]}  O-O {[%clk 0:01:31]} 18. Nce4 {[%clk 0:01:11]}  Nxe4 {[%clk 0:01:31]} 19. Qxe4 {[%clk 0:01:12]}  f5 {[%clk 0:01:01]} 20. Qh4 {[%clk 0:01:11]}  h6 {[%clk 0:01:00]} 21. Qh5 {[%clk 0:00:46]}  hxg5 {[%clk 0:00:40]} 22. Rxg7+ {[%clk 0:00:40]}  Kxg7 {[%clk 0:00:40]} 23. Qxg5+ {[%clk 0:00:40]}  Kf7 {[%clk 0:00:41]} 24. Be2 {[%clk 0:00:39]}  Rh8 {[%clk 0:00:24]} 25. Bh5+ {[%clk 0:00:34]}  Rxh5 {[%clk 0:00:23]} 26. Qxh5+ {[%clk 0:00:35]}  Ke7 {[%clk 0:00:23]} 27. Ke2 {[%clk 0:00:19]}  Qxc6 {[%clk 0:00:20]} 28. Qh7+ {[%clk 0:00:19]}  Kd8 {[%clk 0:00:16]} 29. Rd1+ {[%clk 0:00:18]}  Bd7 {[%clk 0:00:16]} 30. Qg8+ {[%clk 0:00:15]}  Kc7 {[%clk 0:00:16]} 31. Qg3+ {[%clk 0:00:14]}  Bd6 {[%clk 0:00:16]} 32. Qh3 {[%clk 0:00:11]}  Qc2+ {[%clk 0:00:15]} 33. Rd2 {[%clk 0:00:11]}  Bb5+ {[%clk 0:00:16]} 34. Ke1 {[%clk 0:00:09]}  Qc1+ {[%clk 0:00:15]} 35. Rd1 {[%clk 0:00:09]}  Qc3+ {[%clk 0:00:15]} 36. Rd2 {[%clk 0:00:09]}  Rh8 {[%clk 0:00:14]} 37. Qf3 {[%clk 0:00:06]}  Qc1+ {[%clk 0:00:14]} 38. Rd1 {[%clk 0:00:06]}  Qc3+ {[%clk 0:00:15]} 39. Rd2 {[%clk 0:00:06]}  Rxh2 {[%clk 0:00:15]} 0-1


[Site "https://www.chess.com"]

[Event "Titled Tuesday Blitz March 21 Early 2023"]
[White "Derjabin, Ilja"]
[Black "Adithya A Chullikkad"]
[WhiteFideId "14104768"]
[BlackFideId "45078734"]
[WhiteElo "2309"]
[BlackElo "1984"]
[Result "1-0"]
[Round "04"]
[TimeControl "180+2"]
[Date "2023.03.21"]
[WhiteClock "0:00:05"]
[BlackClock "0:00:05"]

1. d4 {[%clk 0:03:00]}  Nf6 {[%clk 0:02:42]} 2. c4 {[%clk 0:02:58]}  e6 {[%clk 0:02:35]} 3. Nc3 {[%clk 0:02:58]}  d5 {[%clk 0:02:34]} 4. cxd5 {[%clk 0:02:56]}  exd5 {[%clk 0:02:29]} 5. Bg5 {[%clk 0:02:54]}  Bb4 {[%clk 0:02:28]} 6. e3 {[%clk 0:02:54]}  O-O {[%clk 0:02:27]} 7. Bd3 {[%clk 0:02:53]}  h6 {[%clk 0:02:24]} 8. Bh4 {[%clk 0:02:52]}  c6 {[%clk 0:02:24]} 9. Ne2 {[%clk 0:02:52]}  Be6 {[%clk 0:02:21]} 10. O-O {[%clk 0:02:48]}  Nbd7 {[%clk 0:02:13]} 11. Nf4 {[%clk 0:02:45]}  Bd6 {[%clk 0:01:46]} 12. Nxe6 {[%clk 0:02:29]}  fxe6 {[%clk 0:01:45]} 13. e4 {[%clk 0:02:30]}  Be7 {[%clk 0:01:39]} 14. Bg3 {[%clk 0:02:22]}  Qb6 {[%clk 0:01:04]} 15. e5 {[%clk 0:02:13]}  Ne8 {[%clk 0:00:53]} 16. Na4 {[%clk 0:02:00]}  Qa5 {[%clk 0:00:48]} 17. b3 {[%clk 0:01:57]}  b5 {[%clk 0:00:45]} 18. Nb2 {[%clk 0:01:52]}  Qc3 {[%clk 0:00:43]} 19. Rb1 {[%clk 0:01:41]}  Kh8 {[%clk 0:00:41]} 20. Qh5 {[%clk 0:01:34]}  Rg8 {[%clk 0:00:29]} 21. Rfc1 {[%clk 0:01:10]}  Qxd4 {[%clk 0:00:24]} 22. Bg6 {[%clk 0:00:45]}  Nc7 {[%clk 0:00:16]} 23. Rd1 {[%clk 0:00:36]}  Qb4 {[%clk 0:00:15]} 24. Nd3 {[%clk 0:00:35]}  Qa3 {[%clk 0:00:15]} 25. Bf4 {[%clk 0:00:25]}  Bf8 {[%clk 0:00:06]} 26. Bf7 {[%clk 0:00:23]}  c5 {[%clk 0:00:07]} 27. Bxg8 {[%clk 0:00:16]}  Kxg8 {[%clk 0:00:08]} 28. Bxh6 {[%clk 0:00:08]}  gxh6 {[%clk 0:00:07]} 29. Nf4 {[%clk 0:00:09]}  Ne8 {[%clk 0:00:06]} 30. Nxe6 {[%clk 0:00:08]}  Ng7 {[%clk 0:00:07]} 31. Nxg7 {[%clk 0:00:04]}  Bxg7 {[%clk 0:00:07]} 32. e6 {[%clk 0:00:05]}  Nf8 {[%clk 0:00:07]} 33. Qf7+ {[%clk 0:00:04]}  Kh8 {[%clk 0:00:07]} 34. e7 {[%clk 0:00:05]}  Qa5 {[%clk 0:00:05]} 35. e8=Q {[%clk 0:00:04]}  Rxe8 {[%clk 0:00:05]} 36. Qxe8 {[%clk 0:00:05]}  Qxa2 {[%clk 0:00:05]} 37. Re1 {[%clk 0:00:04]}  Kg8 {[%clk 0:00:05]} 38. Qd8 {[%clk 0:00:03]}  Bd4 {[%clk 0:00:06]} 39. Rf1 {[%clk 0:00:02]}  Bxf2+ {[%clk 0:00:05]} 40. Kh1 {[%clk 0:00:03]}  d4 {[%clk 0:00:05]} 41. Qd5+ {[%clk 0:00:03]}  Kh8 {[%clk 0:00:05]} 42. Qxc5 {[%clk 0:00:03]}  d3 {[%clk 0:00:04]} 43. Qxf2 {[%clk 0:00:04]}  d2 {[%clk 0:00:05]} 44. Qd4+ {[%clk 0:00:03]}  Kh7 {[%clk 0:00:06]} 45. Rbd1 {[%clk 0:00:03]}  Qxb3 {[%clk 0:00:06]} 46. Qe4+ {[%clk 0:00:04]}  Ng6 {[%clk 0:00:06]} 47. Rxd2 {[%clk 0:00:05]}  h5 {[%clk 0:00:06]} 48. Rd7+ {[%clk 0:00:05]}  Kh6 {[%clk 0:00:06]} 49. Rd6 {[%clk 0:00:05]}  Qg8 {[%clk 0:00:05]} 50. h3 {[%clk 0:00:04]}  Kg5 {[%clk 0:00:04]} 51. Rf5+ {[%clk 0:00:04]}  Kh6 {[%clk 0:00:04]} 52. Rff6 {[%clk 0:00:05]}  Qg7 {[%clk 0:00:04]} 53. Rxg6+ {[%clk 0:00:05]}  Qxg6 {[%clk 0:00:05]} 54. Qxg6# {[%clk 0:00:05]} 1-0


[Site "https://www.chess.com"]